[Event "Titled Tuesday Blitz October 31 Early 2023"]
[White "BashirovKemal"]
[Black "Rios Escobar, Adan"]
[BlackFideId "3403645"]
[WhiteElo "2673"]
[BlackElo "2446"]
[Result "1-0"]
[Round "3"]
[TimeControl "180+1"]
[Date "2023.10.31"]
[WhiteClock "0:00:23"]
[BlackClock "0:00:11"]
[Board "89"]

1. d4 {[%clk 0:02:58]}  Nf6 {[%clk 0:02:59]} 2. c4 {[%clk 0:02:57]}  g6 {[%clk 0:03:00]} 3. Nc3 {[%clk 0:02:55]}  d5 {[%clk 0:03:00]} 4. Nf3 {[%clk 0:02:55]}  Bg7 {[%clk 0:03:00]} 5. Qb3 {[%clk 0:02:55]}  dxc4 {[%clk 0:02:59]} 6. Qxc4 {[%clk 0:02:56]}  Be6 {[%clk 0:02:52]} 7. Qb5+ {[%clk 0:02:54]}  Nbd7 {[%clk 0:02:51]} 8. d5 {[%clk 0:02:52]}  Bf5 {[%clk 0:02:49]} 9. Qa4 {[%clk 0:02:38]}  O-O {[%clk 0:02:46]} 10. e4 {[%clk 0:02:37]}  Nc5 {[%clk 0:02:44]} 11. Qd1 {[%clk 0:02:27]}  Nfxe4 {[%clk 0:02:43]} 12. Bd2 {[%clk 0:02:22]}  Re8 {[%clk 0:02:24]} 13. Bc4 {[%clk 0:02:18]}  e6 {[%clk 0:02:10]} 14. O-O {[%clk 0:02:11]}  exd5 {[%clk 0:01:42]} 15. Nxd5 {[%clk 0:02:12]}  Bg4 {[%clk 0:01:37]} 16. Bf4 {[%clk 0:02:05]}  Ne6 {[%clk 0:01:31]} 17. Be3 {[%clk 0:02:05]}  c6 {[%clk 0:01:27]} 18. Nb4 {[%clk 0:01:58]}  Bxb2 {[%clk 0:01:19]} 19. Rb1 {[%clk 0:01:56]}  Qxd1 {[%clk 0:01:12]} 20. Rfxd1 {[%clk 0:01:54]}  Nc3 {[%clk 0:01:08]} 21. Rd2 {[%clk 0:01:52]}  Nxb1 {[%clk 0:01:03]} 22. Rxb2 {[%clk 0:01:52]}  Nc3 {[%clk 0:01:04]} 23. Ne5 {[%clk 0:01:48]}  Bf5 {[%clk 0:00:58]} 24. g4 {[%clk 0:01:46]}  Be4 {[%clk 0:00:45]} 25. Nd7 {[%clk 0:01:46]}  Kg7 {[%clk 0:00:40]} 26. Bxe6 {[%clk 0:01:42]}  Nd1 {[%clk 0:00:37]} 27. Bd4+ {[%clk 0:01:40]}  Kg8 {[%clk 0:00:36]} 28. Nf6+ {[%clk 0:01:37]}  Kf8 {[%clk 0:00:36]} 29. Nxe8 {[%clk 0:01:32]}  Rxe8 {[%clk 0:00:37]} 30. Rd2 {[%clk 0:01:25]}  Bf3 {[%clk 0:00:37]} 31. Rd3 {[%clk 0:01:14]}  Be2 {[%clk 0:00:27]} 32. Bb3 {[%clk 0:01:14]}  Bxd3 {[%clk 0:00:24]} 33. Nxd3 {[%clk 0:01:14]}  Rd8 {[%clk 0:00:17]} 34. Bc5+ {[%clk 0:01:14]}  Kg8 {[%clk 0:00:16]} 35. Ne5 {[%clk 0:01:13]}  Nc3 {[%clk 0:00:11]} 36. Nxf7 {[%clk 0:01:10]}  Rd2 {[%clk 0:00:09]} 37. Ng5+ {[%clk 0:01:00]}  Kg7 {[%clk 0:00:07]} 38. Nf3 {[%clk 0:00:53]}  Ne2+ {[%clk 0:00:07]} 39. Kf1 {[%clk 0:00:52]}  Nf4 {[%clk 0:00:06]} 40. Nxd2 {[%clk 0:00:49]}  Nd3 {[%clk 0:00:05]} 41. Bd4+ {[%clk 0:00:49]}  Kh6 {[%clk 0:00:03]} 42. Ke2 {[%clk 0:00:50]}  Nf4+ {[%clk 0:00:03]} 43. Kf3 {[%clk 0:00:50]}  Nh3 {[%clk 0:00:03]} 44. Be3+ {[%clk 0:00:50]}  g5 {[%clk 0:00:03]} 45. Bc4 {[%clk 0:00:45]}  b5 {[%clk 0:00:02]} 46. Bd3 {[%clk 0:00:45]}  a5 {[%clk 0:00:03]} 47. Kg2 {[%clk 0:00:45]}  Nf4+ {[%clk 0:00:03]} 48. Bxf4 {[%clk 0:00:45]}  gxf4 {[%clk 0:00:04]} 49. Kf3 {[%clk 0:00:46]}  a4 {[%clk 0:00:04]} 50. Kxf4 {[%clk 0:00:46]}  a3 {[%clk 0:00:04]} 51. Nb3 {[%clk 0:00:45]}  b4 {[%clk 0:00:04]} 52. Bc4 {[%clk 0:00:45]}  Kg7 {[%clk 0:00:04]} 53. Kg5 {[%clk 0:00:46]}  h6+ {[%clk 0:00:03]} 54. Kf5 {[%clk 0:00:46]}  Kh7 {[%clk 0:00:03]} 55. Kf6 {[%clk 0:00:46]}  c5 {[%clk 0:00:02]} 56. Ke6 {[%clk 0:00:42]}  h5 {[%clk 0:00:03]} 57. g5 {[%clk 0:00:41]}  Kg6 {[%clk 0:00:03]} 58. f4 {[%clk 0:00:41]}  h4 {[%clk 0:00:03]} 59. Nxc5 {[%clk 0:00:40]}  Kh5 {[%clk 0:00:03]} 60. Be2+ {[%clk 0:00:39]}  Kg6 {[%clk 0:00:03]} 61. f5+ {[%clk 0:00:31]}  Kxg5 {[%clk 0:00:03]} 62. f6 {[%clk 0:00:32]}  Kf4 {[%clk 0:00:03]} 63. f7 {[%clk 0:00:31]}  Ke3 {[%clk 0:00:04]} 64. f8=Q {[%clk 0:00:31]}  Kxe2 {[%clk 0:00:04]} 65. Qf4 {[%clk 0:00:29]}  h3 {[%clk 0:00:05]} 66. Qg3 {[%clk 0:00:29]}  b3 {[%clk 0:00:05]} 67. Qxb3 {[%clk 0:00:28]}  Kf2 {[%clk 0:00:04]} 68. Qxh3 {[%clk 0:00:29]}  Kg1 {[%clk 0:00:04]} 69. Qg3+ {[%clk 0:00:28]}  Kh1 {[%clk 0:00:05]} 70. Qh4 {[%clk 0:00:26]}  Kg1 {[%clk 0:00:05]} 71. h3 {[%clk 0:00:26]}  Kh1 {[%clk 0:00:06]} 72. Qg4 {[%clk 0:00:26]}  Kh2 {[%clk 0:00:06]} 73. h4 {[%clk 0:00:26]}  Kh1 {[%clk 0:00:07]} 74. h5 {[%clk 0:00:27]}  Kh2 {[%clk 0:00:08]} 75. h6 {[%clk 0:00:28]}  Kh1 {[%clk 0:00:08]} 76. h7 {[%clk 0:00:29]}  Kh2 {[%clk 0:00:08]} 77. Qf3 {[%clk 0:00:27]}  Kg1 {[%clk 0:00:08]} 78. Qxa3 {[%clk 0:00:27]}  Kg2 {[%clk 0:00:08]} 79. Qe3 {[%clk 0:00:27]}  Kf1 {[%clk 0:00:09]} 80. a3 {[%clk 0:00:28]}  Kg2 {[%clk 0:00:09]} 81. a4 {[%clk 0:00:28]}  Kf1 {[%clk 0:00:10]} 82. a5 {[%clk 0:00:29]}  Kg2 {[%clk 0:00:11]} 83. a6 {[%clk 0:00:30]}  Kf1 {[%clk 0:00:09]} 84. a7 {[%clk 0:00:31]}  Kg2 {[%clk 0:00:10]} 85. a8=Q+ {[%clk 0:00:23]}  Kf1 {[%clk 0:00:11]} 86. Qh1# {[%clk 0:00:23]} 1-0


[Site "https://www.chess.com"]

[Event "Titled Tuesday Blitz October 31 Early 2023"]
[White "Rosh Jain"]
[Black "Janaszak, Dawid"]
[WhiteFideId "25789465"]
[BlackFideId "1119206"]
[WhiteElo "2444"]
[BlackElo "2665"]
[Result "0-1"]
[Round "3"]
[TimeControl "180+1"]
[Date "2023.10.31"]
[WhiteClock "0:00:52"]
[BlackClock "0:02:18"]
[Board "90"]

1. e3 {[%clk 0:01:29]}  g6 {[%clk 0:02:56]} 2. d3 {[%clk 0:01:28]}  Bg7 {[%clk 0:02:56]} 3. Nd2 {[%clk 0:01:28]}  c5 {[%clk 0:02:56]} 4. Ne2 {[%clk 0:01:29]}  Nc6 {[%clk 0:02:57]} 5. g3 {[%clk 0:01:30]}  h5 {[%clk 0:02:57]} 6. Bg2 {[%clk 0:01:31]}  h4 {[%clk 0:02:57]} 7. O-O {[%clk 0:01:29]}  Nf6 {[%clk 0:02:56]} 8. c3 {[%clk 0:01:24]}  d5 {[%clk 0:02:54]} 9. e4 {[%clk 0:01:13]}  hxg3 {[%clk 0:02:53]} 10. hxg3 {[%clk 0:01:12]}  e5 {[%clk 0:02:39]} 11. exd5 {[%clk 0:01:09]}  Nxd5 {[%clk 0:02:39]} 12. Nc4 {[%clk 0:01:08]}  Bg4 {[%clk 0:02:34]} 13. Bg5 {[%clk 0:01:06]}  Qxg5 {[%clk 0:02:26]} 14. Bxd5 {[%clk 0:01:05]}  Qh5 {[%clk 0:02:21]} 15. Re1 {[%clk 0:00:51]}  Qh2+ {[%clk 0:02:19]} 16. Kf1 {[%clk 0:00:51]}  Bh3+ {[%clk 0:02:19]} 17. Bg2 {[%clk 0:00:52]}  Qxg2# {[%clk 0:02:18]} 0-1


[Site "https://www.chess.com"]

[Event "Titled Tuesday Blitz October 31 Early 2023"]
[White "Juicy_Fork"]
[Black "Kleiman, Jake"]
[BlackFideId "2020041"]
[WhiteElo "2443"]
[BlackElo "2661"]
[Result "0-1"]
[Round "3"]
[TimeControl "180+1"]
[Date "2023.10.31"]
[WhiteClock "0:01:04"]
[BlackClock "0:02:38"]
[Board "91"]

1. e4 {[%clk 0:02:25]}  e5 {[%clk 0:02:57]} 2. Nf3 {[%clk 0:02:24]}  Nc6 {[%clk 0:02:58]} 3. Bb5 {[%clk 0:02:23]}  a6 {[%clk 0:02:59]} 4. Ba4 {[%clk 0:02:22]}  Nf6 {[%clk 0:02:59]} 5. O-O {[%clk 0:02:21]}  b5 {[%clk 0:03:00]} 6. Bb3 {[%clk 0:02:20]}  Bc5 {[%clk 0:03:01]} 7. a4 {[%clk 0:02:19]}  Rb8 {[%clk 0:03:01]} 8. c3 {[%clk 0:02:14]}  d6 {[%clk 0:03:00]} 9. d4 {[%clk 0:02:14]}  Bb6 {[%clk 0:03:01]} 10. axb5 {[%clk 0:02:12]}  axb5 {[%clk 0:03:01]} 11. Qd3 {[%clk 0:02:12]}  Bd7 {[%clk 0:03:01]} 12. Bg5 {[%clk 0:02:11]}  h6 {[%clk 0:03:01]} 13. Bxf6 {[%clk 0:02:01]}  Qxf6 {[%clk 0:03:00]} 14. d5 {[%clk 0:01:48]}  Ne7 {[%clk 0:03:00]} 15. Nbd2 {[%clk 0:01:49]}  g5 {[%clk 0:02:53]} 16. c4 {[%clk 0:01:38]}  g4 {[%clk 0:02:50]} 17. Ne1 {[%clk 0:01:36]}  Ng6 {[%clk 0:02:51]} 18. g3 {[%clk 0:01:34]}  h5 {[%clk 0:02:51]} 19. Kg2 {[%clk 0:01:24]}  h4 {[%clk 0:02:51]} 20. f3 {[%clk 0:01:18]}  hxg3 {[%clk 0:02:48]} 21. hxg3 {[%clk 0:01:18]}  gxf3+ {[%clk 0:02:38]} 22. Nexf3 {[%clk 0:01:04]}  Bh3+ {[%clk 0:02:38]} 0-1


[Site "https://www.chess.com"]

[Event "Titled Tuesday Blitz October 31 Early 2023"]
[White "Parkhov, Yair"]
[Black "Leyva Rivera, Yunier"]
[WhiteFideId "2813408"]
[BlackFideId "3505065"]
[WhiteElo "2659"]
[BlackElo "2435"]
[Result "1-0"]
[Round "3"]
[TimeControl "180+1"]
[Date "2023.10.31"]
[WhiteClock "0:00:03"]
[BlackClock "0:00:43"]
[Board "92"]

1. e4 {[%clk 0:00:15]}  c5 {[%clk 0:01:59]} 2. Nf3 {[%clk 0:00:15]}  d6 {[%clk 0:01:58]} 3. Bb5+ {[%clk 0:00:09]}  Nd7 {[%clk 0:01:58]} 4. a4 {[%clk 0:00:09]}  Nf6 {[%clk 0:01:58]} 5. Nc3 {[%clk 0:00:09]}  e6 {[%clk 0:01:58]} 6. O-O {[%clk 0:00:09]}  Be7 {[%clk 0:01:58]} 7. d4 {[%clk 0:00:09]}  cxd4 {[%clk 0:01:59]} 8. Qxd4 {[%clk 0:00:10]}  O-O {[%clk 0:01:59]} 9. Rd1 {[%clk 0:00:07]}  a6 {[%clk 0:01:58]} 10. Bf1 {[%clk 0:00:08]}  Qc7 {[%clk 0:01:51]} 11. Qc4 {[%clk 0:00:06]}  Qb8 {[%clk 0:01:51]} 12. Bf4 {[%clk 0:00:06]}  Ne5 {[%clk 0:01:50]} 13. Nxe5 {[%clk 0:00:06]}  dxe5 {[%clk 0:01:51]} 14. Be3 {[%clk 0:00:06]}  b6 {[%clk 0:01:51]} 15. f3 {[%clk 0:00:06]}  Bd7 {[%clk 0:01:49]} 16. Qb3 {[%clk 0:00:06]}  Bd8 {[%clk 0:01:44]} 17. Bf2 {[%clk 0:00:06]}  Bc6 {[%clk 0:01:40]} 18. Rd2 {[%clk 0:00:06]}  Bc7 {[%clk 0:01:40]} 19. Rad1 {[%clk 0:00:07]}  Qb7 {[%clk 0:01:40]} 20. Nb1 {[%clk 0:00:07]}  h5 {[%clk 0:01:37]} 21. Nc3 {[%clk 0:00:08]}  Rad8 {[%clk 0:01:33]} 22. Qc4 {[%clk 0:00:08]}  Rxd2 {[%clk 0:01:31]} 23. Rxd2 {[%clk 0:00:09]}  b5 {[%clk 0:01:31]} 24. axb5 {[%clk 0:00:09]}  axb5 {[%clk 0:01:32]} 25. Nxb5 {[%clk 0:00:10]}  Ba5 {[%clk 0:01:32]} 26. Rd1 {[%clk 0:00:10]}  Rb8 {[%clk 0:01:32]} 27. Nd6 {[%clk 0:00:09]}  Qc7 {[%clk 0:01:31]} 28. b3 {[%clk 0:00:07]}  Rd8 {[%clk 0:01:26]} 29. Nb5 {[%clk 0:00:06]}  Bxb5 {[%clk 0:01:25]} 30. Qxc7 {[%clk 0:00:05]}  Rxd1 {[%clk 0:01:22]} 31. Qb8+ {[%clk 0:00:05]}  Be8 {[%clk 0:01:19]} 32. Bh4 {[%clk 0:00:04]}  Bd2 {[%clk 0:00:50]} 33. Kf2 {[%clk 0:00:04]}  g5 {[%clk 0:00:50]} 34. Ke2 {[%clk 0:00:04]}  Re1+ {[%clk 0:00:43]} 35. Bxe1 {[%clk 0:00:03]} 1-0


[Site "https://www.chess.com"]

[Event "Titled Tuesday Blitz October 31 Early 2023"]
[White "Kuzhylnyi, Oleksandr"]
[Black "crazy_m_attack"]
[WhiteFideId "34110500"]
[WhiteElo "2639"]
[BlackElo "2430"]
[Result "1-0"]
[Round "3"]
[TimeControl "180+1"]
[Date "2023.10.31"]
[WhiteClock "0:01:58"]
[BlackClock "0:01:51"]
[Board "96"]

1. b3 {[%clk 0:03:00]}  e5 {[%clk 0:02:59]} 2. Bb2 {[%clk 0:03:01]}  Nc6 {[%clk 0:03:00]} 3. c4 {[%clk 0:03:00]}  Nf6 {[%clk 0:02:59]} 4. e3 {[%clk 0:03:00]}  d5 {[%clk 0:02:59]} 5. cxd5 {[%clk 0:03:01]}  Nxd5 {[%clk 0:03:00]} 6. a3 {[%clk 0:03:01]}  Bd6 {[%clk 0:02:57]} 7. d3 {[%clk 0:02:53]}  Be6 {[%clk 0:02:56]} 8. Nd2 {[%clk 0:02:52]}  O-O {[%clk 0:02:54]} 9. Ngf3 {[%clk 0:02:49]}  f5 {[%clk 0:02:51]} 10. Nc4 {[%clk 0:02:49]}  e4 {[%clk 0:02:43]} 11. dxe4 {[%clk 0:02:35]}  fxe4 {[%clk 0:02:44]} 12. Nfd2 {[%clk 0:02:35]}  Nxe3 {[%clk 0:02:36]} 13. Nxe3 {[%clk 0:02:20]}  Qe8 {[%clk 0:02:07]} 14. Bc4 {[%clk 0:02:05]}  Rd8 {[%clk 0:01:51]} 15. Qg4 {[%clk 0:01:58]} 1-0


[Site "https://www.chess.com"]

[Event "Titled Tuesday Blitz October 31 Early 2023"]
[White "McBryde, Lamel"]
[Black "Wizard_97"]
[WhiteFideId "2058596"]
[WhiteElo "2421"]
[BlackElo "2630"]
[Result "1/2-1/2"]
[Round "3"]
[TimeControl "180+1"]
[Date "2023.10.31"]
[WhiteClock "0:00:19"]
[BlackClock "0:00:06"]
[Board "99"]

1. Nf3 {[%clk 0:03:00]}  Nf6 {[%clk 0:02:21]} 2. b3 {[%clk 0:03:00]}  e6 {[%clk 0:02:21]} 3. Bb2 {[%clk 0:03:00]}  b6 {[%clk 0:02:21]} 4. d4 {[%clk 0:03:01]}  Bb7 {[%clk 0:02:21]} 5. e3 {[%clk 0:03:02]}  Be7 {[%clk 0:02:22]} 6. Bd3 {[%clk 0:03:02]}  d5 {[%clk 0:02:20]} 7. Nbd2 {[%clk 0:03:02]}  O-O {[%clk 0:02:20]} 8. a3 {[%clk 0:03:02]}  c5 {[%clk 0:02:20]} 9. c4 {[%clk 0:03:03]}  Nc6 {[%clk 0:02:20]} 10. Qc2 {[%clk 0:03:03]}  Rc8 {[%clk 0:02:19]} 11. O-O {[%clk 0:03:03]}  cxd4 {[%clk 0:02:19]} 12. exd4 {[%clk 0:03:04]}  Na5 {[%clk 0:02:19]} 13. Qd1 {[%clk 0:03:03]}  dxc4 {[%clk 0:02:19]} 14. bxc4 {[%clk 0:03:04]}  Qc7 {[%clk 0:02:15]} 15. Ne5 {[%clk 0:03:00]}  Rfd8 {[%clk 0:02:13]} 16. f4 {[%clk 0:02:59]}  Nc6 {[%clk 0:02:09]} 17. Ndf3 {[%clk 0:02:59]}  Nxe5 {[%clk 0:01:45]} 18. fxe5 {[%clk 0:02:56]}  Ne4 {[%clk 0:01:45]} 19. Qe2 {[%clk 0:02:54]}  Ng5 {[%clk 0:01:45]} 20. Nxg5 {[%clk 0:02:48]}  Bxg5 {[%clk 0:01:45]} 21. Rae1 {[%clk 0:02:39]}  Rd7 {[%clk 0:01:40]} 22. Qh5 {[%clk 0:02:22]}  Bh6 {[%clk 0:01:39]} 23. g4 {[%clk 0:01:41]}  Qd8 {[%clk 0:01:36]} 24. h4 {[%clk 0:01:38]}  Rxd4 {[%clk 0:01:36]} 25. Bxd4 {[%clk 0:01:35]}  Qxd4+ {[%clk 0:01:35]} 26. Rf2 {[%clk 0:01:27]}  Be3 {[%clk 0:01:04]} 27. Bxh7+ {[%clk 0:01:17]}  Kh8 {[%clk 0:01:04]} 28. Be4+ {[%clk 0:00:53]}  Kg8 {[%clk 0:00:44]} 29. Qxf7+ {[%clk 0:00:52]}  Kh8 {[%clk 0:00:44]} 30. Qh5+ {[%clk 0:00:48]}  Bh6 {[%clk 0:00:44]} 31. Bxb7 {[%clk 0:00:46]}  Rf8 {[%clk 0:00:43]} 32. Rf1 {[%clk 0:00:42]}  Rf4 {[%clk 0:00:18]} 33. Bf3 {[%clk 0:00:27]}  Rxf3 {[%clk 0:00:17]} 34. Kg2 {[%clk 0:00:23]}  Rxf2+ {[%clk 0:00:13]} 35. Rxf2 {[%clk 0:00:24]}  Qe4+ {[%clk 0:00:14]} 36. Kg3 {[%clk 0:00:21]}  Qe3+ {[%clk 0:00:13]} 37. Kg2 {[%clk 0:00:20]}  Qe4+ {[%clk 0:00:13]} 38. Kg3 {[%clk 0:00:20]}  Qe3+ {[%clk 0:00:07]} 39. Kg2 {[%clk 0:00:19]}  Qe4+ {[%clk 0:00:06]} 1/2-1/2


[Site "https://www.chess.com"]

[Event "Titled Tuesday Blitz October 31 Early 2023"]
[White "Spichkin, Alexander"]
[Black "Jain Kashish Manoj"]
[WhiteFideId "4144074"]
[BlackFideId "35081098"]
[WhiteElo "2415"]
[BlackElo "2624"]
[Result "0-1"]
[Round "3"]
[TimeControl "180+1"]
[Date "2023.10.31"]
[WhiteClock "0:00:59"]
[BlackClock "0:00:12"]
[Board "101"]

1. f4 {[%clk 0:02:58]}  d5 {[%clk 0:02:58]} 2. Nf3 {[%clk 0:02:58]}  Nf6 {[%clk 0:02:57]} 3. e3 {[%clk 0:02:58]}  h6 {[%clk 0:02:52]} 4. b3 {[%clk 0:02:58]}  Bf5 {[%clk 0:02:51]} 5. Bb2 {[%clk 0:02:57]}  e6 {[%clk 0:02:50]} 6. Be2 {[%clk 0:02:56]}  Be7 {[%clk 0:02:50]} 7. O-O {[%clk 0:02:56]}  O-O {[%clk 0:02:50]} 8. Ne5 {[%clk 0:02:57]}  Bh7 {[%clk 0:02:47]} 9. Rf3 {[%clk 0:02:56]}  Nbd7 {[%clk 0:02:46]} 10. Rg3 {[%clk 0:02:57]}  Ne4 {[%clk 0:02:26]} 11. Rxg7+ {[%clk 0:02:47]}  Kxg7 {[%clk 0:02:27]} 12. Nxd7+ {[%clk 0:02:45]}  Bf6 {[%clk 0:02:18]} 13. Bxf6+ {[%clk 0:02:43]}  Nxf6 {[%clk 0:02:18]} 14. Nxf8 {[%clk 0:02:43]}  Qxf8 {[%clk 0:02:17]} 15. d3 {[%clk 0:02:43]}  Qc5 {[%clk 0:02:12]} 16. Qd2 {[%clk 0:02:42]}  d4 {[%clk 0:02:09]} 17. e4 {[%clk 0:02:40]}  Nxe4 {[%clk 0:01:28]} 18. dxe4 {[%clk 0:02:31]}  d3+ {[%clk 0:01:29]} 19. Kh1 {[%clk 0:02:23]}  dxe2 {[%clk 0:01:29]} 20. Qxe2 {[%clk 0:02:23]}  Qd4 {[%clk 0:01:29]} 21. c3 {[%clk 0:02:13]}  Qxe4 {[%clk 0:01:29]} 22. Qg4+ {[%clk 0:02:13]}  Qg6 {[%clk 0:01:22]} 23. Qf3 {[%clk 0:02:11]}  Rd8 {[%clk 0:01:21]} 24. Na3 {[%clk 0:02:11]}  Qe4 {[%clk 0:01:08]} 25. Qg4+ {[%clk 0:02:06]}  Kh8 {[%clk 0:01:08]} 26. Nc4 {[%clk 0:02:06]}  Rg8 {[%clk 0:01:07]} 27. Qh3 {[%clk 0:02:00]}  Qxf4 {[%clk 0:00:58]} 28. Re1 {[%clk 0:01:51]}  Be4 {[%clk 0:00:52]} 29. Ne3 {[%clk 0:01:50]}  Kh7 {[%clk 0:00:45]} 30. Kg1 {[%clk 0:01:49]}  Rg7 {[%clk 0:00:36]} 31. Re2 {[%clk 0:01:47]}  f5 {[%clk 0:00:33]} 32. Nf1 {[%clk 0:01:41]}  Rd7 {[%clk 0:00:23]} 33. Qe3 {[%clk 0:01:34]}  Qxe3+ {[%clk 0:00:20]} 34. Nxe3 {[%clk 0:01:35]}  Rd3 {[%clk 0:00:19]} 35. c4 {[%clk 0:01:35]}  Kg6 {[%clk 0:00:17]} 36. g4 {[%clk 0:01:34]}  Kg5 {[%clk 0:00:16]} 37. gxf5 {[%clk 0:01:34]}  exf5 {[%clk 0:00:17]} 38. Kf2 {[%clk 0:01:34]}  Rc3 {[%clk 0:00:17]} 39. Nd1 {[%clk 0:01:30]}  Rf3+ {[%clk 0:00:16]} 40. Ke1 {[%clk 0:01:30]}  Rh3 {[%clk 0:00:14]} 41. Ne3 {[%clk 0:01:28]}  Kf4 {[%clk 0:00:14]} 42. Kd2 {[%clk 0:01:27]}  c6 {[%clk 0:00:11]} 43. b4 {[%clk 0:01:27]}  Ke5 {[%clk 0:00:10]} 44. a4 {[%clk 0:01:22]}  Kd4 {[%clk 0:00:10]} 45. b5 {[%clk 0:01:19]}  f4 {[%clk 0:00:10]} 46. Ng4 {[%clk 0:01:15]}  Rd3+ {[%clk 0:00:09]} 47. Kc1 {[%clk 0:01:14]}  Bf3 {[%clk 0:00:09]} 48. Re7 {[%clk 0:01:12]}  Bxg4 {[%clk 0:00:09]} 49. Rxb7 {[%clk 0:01:13]}  Rc3+ {[%clk 0:00:09]} 50. Kb2 {[%clk 0:01:12]}  Rxc4 {[%clk 0:00:10]} 51. bxc6 {[%clk 0:01:11]}  Rxc6 {[%clk 0:00:11]} 52. Rxa7 {[%clk 0:01:11]}  Rf6 {[%clk 0:00:11]} 53. a5 {[%clk 0:01:06]}  Be2 {[%clk 0:00:11]} 54. Rd7+ {[%clk 0:01:05]}  Kc5 {[%clk 0:00:11]} 55. a6 {[%clk 0:01:04]}  Bxa6 {[%clk 0:00:11]} 56. Kc3 {[%clk 0:01:04]}  f3 {[%clk 0:00:11]} 57. Re7 {[%clk 0:01:02]}  f2 {[%clk 0:00:11]} 58. Re5+ {[%clk 0:01:02]}  Kd6 {[%clk 0:00:11]} 59. Ra5 {[%clk 0:00:59]}  f1=Q {[%clk 0:00:12]} 0-1


[Site "https://www.chess.com"]

[Event "Titled Tuesday Blitz October 31 Early 2023"]
[White "Seemann, Jakub"]
[Black "Srebrnic, Marko"]
[WhiteFideId "21874697"]
[BlackFideId "14603616"]
[WhiteElo "2624"]
[BlackElo "2412"]
[Result "1-0"]
[Round "3"]
[TimeControl "180+1"]
[Date "2023.10.31"]
[WhiteClock "0:01:04"]
[BlackClock "0:00:00"]
[Board "102"]

1. Nf3 {[%clk 0:02:55]}  Nf6 {[%clk 0:02:59]} 2. g3 {[%clk 0:02:52]}  g6 {[%clk 0:02:59]} 3. Bg2 {[%clk 0:02:53]}  Bg7 {[%clk 0:02:59]} 4. O-O {[%clk 0:02:54]}  O-O {[%clk 0:02:59]} 5. d4 {[%clk 0:02:55]}  d6 {[%clk 0:03:00]} 6. c4 {[%clk 0:02:55]}  Nbd7 {[%clk 0:03:00]} 7. Nc3 {[%clk 0:02:56]}  a6 {[%clk 0:02:59]} 8. e4 {[%clk 0:02:56]}  e5 {[%clk 0:02:58]} 9. h3 {[%clk 0:02:53]}  b5 {[%clk 0:02:54]} 10. cxb5 {[%clk 0:02:26]}  axb5 {[%clk 0:02:55]} 11. Re1 {[%clk 0:02:24]}  c6 {[%clk 0:02:53]} 12. d5 {[%clk 0:02:17]}  b4 {[%clk 0:02:42]} 13. dxc6 {[%clk 0:02:17]}  bxc3 {[%clk 0:02:41]} 14. cxd7 {[%clk 0:02:17]}  cxb2 {[%clk 0:02:40]} 15. Bxb2 {[%clk 0:02:11]}  Qxd7 {[%clk 0:02:35]} 16. a4 {[%clk 0:02:09]}  Ba6 {[%clk 0:02:30]} 17. Nd2 {[%clk 0:02:02]}  Rab8 {[%clk 0:02:17]} 18. Ba3 {[%clk 0:02:02]}  Rfd8 {[%clk 0:02:11]} 19. Nf1 {[%clk 0:01:59]}  d5 {[%clk 0:02:10]} 20. exd5 {[%clk 0:01:57]}  Nxd5 {[%clk 0:02:11]} 21. Ne3 {[%clk 0:01:41]}  e4 {[%clk 0:01:46]} 22. Nxd5 {[%clk 0:01:30]}  Qxd5 {[%clk 0:01:13]} 23. Qxd5 {[%clk 0:01:29]}  Rxd5 {[%clk 0:01:14]} 24. Bxe4 {[%clk 0:01:28]}  Rh5 {[%clk 0:01:06]} 25. Rab1 {[%clk 0:01:26]}  Rc8 {[%clk 0:00:47]} 26. Rec1 {[%clk 0:01:24]}  Re8 {[%clk 0:00:36]} 27. Rb6 {[%clk 0:01:12]}  Be2 {[%clk 0:00:12]} 28. Bg2 {[%clk 0:01:11]}  Bd4 {[%clk 0:00:10]} 29. Rd6 {[%clk 0:01:08]}  Be5 {[%clk 0:00:05]} 30. Rd2 {[%clk 0:01:08]}  Ba6 {[%clk 0:00:05]} 31. Re1 {[%clk 0:01:08]}  Rc8 {[%clk 0:00:03]} 32. Rd5 {[%clk 0:01:04]}  Rf5 {[%clk 0:00:02]} 33. Rdxe5 {[%clk 0:01:04]}  Rxe5 {[%clk 0:00:02]} 34. Rxe5 {[%clk 0:01:05]}  Rc1+ {[%clk 0:00:00]} 35. Bxc1 {[%clk 0:01:04]} 1-0


[Site "https://www.chess.com"]